bitfinex/quotes_ETHUSD_20250426
["timestamp","ask_amount","ask_price","bid_price","bid_amount"]
[1745706410795,8.48185505,1824.2,1824.1,5.20889798]
[1745706411394,9.02669114,1824.2,1824.1,5.20889798]
[1745706411807,9.80289114,1824.2,1824.1,5.20889798]
[1745706412031,15.91289114,1824.2,1824.1,5.20889798]
[1745706412218,16.51905626,1824.2,1824.1,5.20889798]
[1745706412422,9.65483609,1824.2,1824.1,5.20889798]
[1745706412720,15.13669114,1824.2,1824.1,5.20889798]
[1745706413617,9.11,1824.2,1824.1,5.20889798]
[1745706414124,9.11,1824.2,1824.1,6.01369798]
[1745706414496,9.11,1824.2,1824.1,7.16331047]
[1745706414732,8.48111483,1824.5,1824.1,12.64546605]
[1745706414936,3.0,1824.5,1824.1,12.64546605]
[1745706415095,3.0,1824.5,1824.2,5.48184805]
[1745706415301,12.13567668,1824.6,1824.3,0.10825173]
[1745706415735,3.0,1824.5,1824.3,0.10825173]
[1745706417532,3.0,1824.5,1824.4,0.10746606]
[1745706417734,8.48107105,1824.5,1824.1,5.9112552]
[1745706417932,5.48155456,1824.3,1824.2,0.10726205]
[1745706418134,5.48185505,1824.2,1824.1,5.1064552]
[1745706418322,5.48185505,1824.2,1824.1,5.21426928]
[1745706418527,6.26815505,1824.2,1824.1,0.51726928]
[1745706419347,9.02655014,1824.3,1824.1,0.51726928]
[1745706419639,15.13655014,1824.3,1824.1,0.51726928]
[1745706419841,5.48185505,1824.2,1824.1,0.51726928]
[1745706420204,9.65483609,1824.3,1824.1,0.51726928]
[1745706420401,6.11,1824.3,1824.1,0.51726928]
[1745706420607,6.11,1824.3,1824.1,1.11484621]
[1745706421709,11.59158001,1824.3,1824.1,0.51726928]
[1745706422317,6.11,1824.3,1824.1,0.51726928]
[1745706422770,11.59165892,1824.3,1824.1,0.51726928]
[1745706423840,6.11,1824.3,1824.1,0.51726928]
[1745706424048,11.59160339,1824.3,1824.1,0.51726928]
[1745706425163,6.11,1824.3,1824.1,0.51726928]
[1745706425657,14.59137724,1824.4,1824.1,0.51726928]
[1745706426162,9.11,1824.4,1824.1,5.99926894]
[1745706426406,6.11,1824.8,1824.3,0.7765]
[1745706426656,6.11,1824.8,1824.4,10.17905001]
[1745706426861,6.11,1824.8,1824.7,0.7765]
[1745706427156,6.11,1824.9,1824.7,0.88453612]
[1745706427561,6.11,1825.0,1824.7,6.36469673]
[1745706427757,6.11,1825.0,1824.9,5.47975231]
[1745706428125,6.11,1825.0,1824.9,0.10608662]
[1745706428323,5.48426017,1823.4,1823.3,0.28629263]
[1745706428561,7.5436714,1823.4,1823.3,0.28629263]
[1745706428768,0.54483609,1823.8,1823.2,0.5765]
[1745706428921,8.4834922,1823.7,1823.2,1.12565]
[1745706429123,8.48321441,1823.8,1823.2,6.66531852]
[1745706429347,8.48321441,1823.8,1823.2,2.85009009]
[1745706429575,5.82629949,1824.2,1823.3,0.59967033]
[1745706429725,5.48232478,1824.1,1823.4,5.48403726]
[1745706429925,3.0,1824.0,1823.5,0.54840373]
[1745706430138,0.30740085,1823.9,1823.6,4.916]
[1745706430340,0.30740085,1823.8,1823.6,4.916]
[1745706430976,0.30740085,1823.7,1823.5,0.54840373]
[1745706431270,0.30740085,1823.7,1823.6,4.916]
[1745706431841,5.48576444,1822.9,1822.8,1.2016808]
[1745706432074,1.09341253,1822.9,1822.3,0.4094552]
[1745706432236,2.36123737,1822.9,1822.3,0.4094552]
[1745706432436,0.54483609,1823.3,1822.3,1.24082299]
[1745706432663,3.0,1823.0,1822.4,5.48726869]
[1745706432865,5.48591692,1822.9,1822.3,6.67338085]
[1745706433041,5.48591692,1822.9,1822.3,6.72824041]
[1745706433242,0.30740085,1822.8,1822.4,5.48717742]
[1745706433442,0.30740085,1822.8,1822.5,5.87171774]
[1745706433664,0.30740085,1822.8,1822.6,5.323]
[1745706434672,0.30740085,1822.8,1822.7,6.37362517]
[1745706435365,3.30740085,1823.2,1822.7,6.37362517]
[1745706435561,8.79227283,1823.2,1822.7,0.8872588]
[1745706435767,3.30740085,1823.2,1822.7,0.8872588]
[1745706435953,5.79228972,1823.2,1822.7,6.37353832]
[1745706436274,5.48488887,1823.2,1822.8,0.63735383]
[1745706436839,3.0,1823.3,1822.8,0.63735383]
[1745706436840,8.48475762,1823.3,1822.8,0.63735383]
[1745706437061,5.48495011,1823.2,1822.8,0.63735383]
[1745706437585,5.70422479,1823.4,1822.7,0.8324]
[1745706437769,5.70422479,1823.4,1822.8,5.323]
[1745706437770,11.18854973,1823.4,1822.8,5.323]
[1745706438087,5.48533839,1823.1,1822.8,5.323]
[1745706438447,8.18956318,1823.1,1822.8,5.323]
[1745706439791,5.48464847,1823.3,1822.8,10.80895329]
[1745706439944,3.0,1823.2,1822.8,12.52172292]
[1745706440144,9.41561416,1823.2,1822.8,12.52172292]
[1745706440373,14.90048564,1823.2,1822.8,12.52172292]
[1745706440699,14.90048564,1823.2,1822.8,7.03576963]
[1745706440980,8.19012237,1822.9,1822.7,5.323]
[1745706441141,2.70422479,1822.9,1822.7,5.323]
[1745706441754,11.49511729,1823.1,1822.7,10.80936097]
[1745706441948,11.18950313,1823.1,1822.7,5.323]
[1745706442167,11.18950313,1823.1,1822.7,6.40395017]
[1745706442370,5.48550006,1823.0,1822.7,6.40395017]
[1745706443158,5.48550006,1823.0,1822.7,5.323]
[1745706443476,3.0,1823.1,1822.7,5.323]
[1745706443677,8.81422479,1823.2,1822.8,5.5407893]
[1745706443886,14.29910266,1823.2,1822.8,5.4859376]
[1745706444079,6.11,1823.2,1823.0,5.48538701]
[1745706444270,8.81422479,1823.5,1823.1,6.03354263]
[1745706444472,14.2982008,1823.5,1823.2,5.324]
[1745706444978,5.48430166,1823.4,1823.2,5.324]
[1745706445496,2.70422479,1823.3,1823.2,5.324]
[1745706445865,8.18878575,1823.3,1823.2,5.324]
[1745706446403,2.70422479,1823.3,1823.2,5.324]
[1745706446771,3.0,1823.4,1823.2,5.324]
[1745706446978,6.11,1823.6,1823.2,6.45975435]
[1745706447177,3.0,1823.5,1823.2,11.88953538]
[1745706447379,3.0,1823.5,1823.3,5.48450705]
[1745706447581,3.0,1823.5,1823.2,11.88955171]
[1745706448079,3.0,1823.5,1823.3,6.67334242]
[1745706448575,6.11,1823.6,1823.3,6.67330983]
[1745706448889,6.11,1823.6,1823.4,0.781]
[1745706449091,6.11,1823.6,1823.4,6.26522818]
[1745706449404,8.81422479,1823.8,1823.5,5.48381289]
[1745706451178,8.81422479,1823.8,1823.4,6.26525743]
[1745706451179,14.29750463,1823.8,1823.4,6.26525743]
[1745706451681,8.81422479,1823.8,1823.5,5.48395497]
[1745706451881,8.81422479,1823.8,1823.4,7.01053829]
[1745706452289,14.2974143,1823.8,1823.4,7.01053829]
[1745706453185,8.81422479,1823.8,1823.5,5.48392185]
[1745706453684,6.65731706,1823.8,1823.5,5.48392185]
[1745706453885,6.65731706,1823.8,1823.5,5.48392297]
[1745706454293,6.11,1823.8,1823.6,5.48364763]
[1745706454496,6.65731706,1824.1,1823.8,5.48286244]
[1745706454695,6.65731706,1824.1,1823.7,5.323]
[1745706454896,5.48267748,1824.0,1823.7,5.323]
[1745706455204,0.54731706,1823.9,1823.7,10.80634087]
[1745706455396,0.54731706,1823.9,1823.7,5.323]
[1745706455594,0.54731706,1823.9,1823.7,10.8063455]
[1745706455795,0.54731706,1823.9,1823.7,5.323]
[1745706456093,0.30599594,1824.0,1823.7,10.80616876]
[1745706456444,0.30599594,1824.0,1823.7,10.80633652]
[1745706457114,0.30599594,1824.0,1823.7,5.323]
[1745706457616,0.30599594,1824.0,1823.7,10.80634961]
[1745706459226,0.30599594,1824.0,1823.8,5.48302553]
[1745706459931,0.30599594,1824.0,1823.9,5.48275673]
[1745706460125,6.51556993,1824.2,1823.9,5.48275673]
[1745706460329,6.11,1824.2,1823.8,6.27351064]
[1745706460530,6.11,1824.2,1823.9,5.482733]
[1745706460695,6.11,1824.2,1823.8,6.27335983]
[1745706460895,6.11,1824.2,1823.8,7.54105931]
[1745706461132,6.11,1824.2,1823.9,5.48275493]
[1745706461793,6.11,1824.2,1823.8,7.54105931]
[1745706462435,6.11,1824.2,1823.9,5.48264027]
[1745706462639,6.11,1824.2,1823.9,5.48251245]
[1745706462838,6.11,1824.2,1824.0,5.48231245]
[1745706463237,6.11,1824.2,1823.9,5.48251245]
[1745706463733,6.65731706,1824.3,1823.9,5.48251245]
[1745706464034,6.65731706,1824.3,1823.9,10.96503099]
[1745706464443,7.05976089,1824.3,1823.9,10.96503099]
[1745706464605,0.54731706,1824.3,1824.0,5.48222244]
[1745706465011,6.02894207,1824.3,1823.9,6.78495177]
[1745706465241,6.02894207,1824.3,1823.9,5.48272319]
[1745706465813,0.30622279,1824.2,1823.9,5.48272319]
[1745706466138,0.30622279,1824.2,1823.8,7.54116524]
[1745706466838,0.30622279,1824.2,1823.9,5.48272062]
[1745706467939,0.30622279,1824.2,1823.9,5.48252468]
[1745706468231,0.30622279,1824.2,1824.0,5.48245614]
[1745706468437,0.85353985,1824.4,1824.0,5.48221597]
[1745706468733,0.85353985,1824.4,1824.0,5.48225243]
[1745706468940,0.85353985,1824.4,1824.1,5.48194829]
[1745706469137,0.85353985,1824.4,1824.2,5.281]
[1745706471607,1.26128846,1824.4,1824.2,5.281]
[1745706471936,0.30622279,1824.3,1824.2,12.65254654]
[1745706472804,3.30622279,1824.5,1824.2,12.65234604]
[1745706473114,3.30622279,1824.5,1824.2,7.17069149]
[1745706473439,3.30622279,1824.5,1824.2,10.7626598]
[1745706473739,0.30622279,1824.4,1824.2,10.7626598]
[1745706473910,0.30622279,1824.4,1824.3,5.48153483]
[1745706474443,0.30622279,1824.4,1824.2,10.76264885]
[1745706474645,0.30622279,1824.4,1824.3,5.48155456]
[1745706474945,3.30622279,1824.5,1824.3,5.48155456]
[1745706475609,0.30622279,1824.4,1824.3,5.48155456]
[1745706476623,0.30622279,1824.4,1824.3,6.29495456]
[1745706477608,0.30622279,1824.7,1824.5,5.48088338]
[1745706478315,0.30622279,1824.7,1824.6,5.48065329]
[1745706479215,0.30622279,1824.9,1824.7,5.48016048]
[1745706479416,0.30622279,1824.9,1824.8,5.28]
[1745706480248,0.30622279,1824.9,1824.8,10.7600526]
[1745706480420,0.30622279,1825.1,1824.8,16.23987257]
[1745706480626,0.71637004,1825.1,1824.8,12.46700723]
[1745706480827,0.30622279,1825.1,1824.8,12.46700723]
[1745706481346,0.30622279,1825.1,1824.9,5.47962116]
[1745706481552,0.30622279,1825.0,1824.9,5.47962116]
[1745706482045,0.30622279,1825.0,1824.9,10.75862116]
[1745706482248,0.30622279,1825.1,1824.9,12.553184]
[1745706482454,0.30622279,1825.1,1824.9,1.79456284]
[1745706482625,5.78551021,1825.1,1825.0,5.279]
[1745706482859,6.33282727,1825.1,1825.0,5.279]
[1745706483577,0.7867,1825.0,1824.9,5.279]
[1745706483765,3.0,1824.8,1824.4,5.48103905]
[1745706483978,3.0,1824.8,1824.5,5.8271039]
[1745706484158,3.30622279,1824.8,1824.5,5.8271039]
[1745706485281,0.30622279,1824.7,1824.5,5.8271039]
[1745706485743,0.85353985,1824.7,1824.5,5.279]
[1745706485946,15.44389309,1824.7,1824.6,5.279]
[1745706487075,6.27150146,1824.6,1824.2,0.832]
[1745706487279,6.27150146,1824.6,1824.3,5.279]
[1745706487482,0.7907,1824.6,1824.3,5.279]
[1745706487643,0.30622279,1824.5,1824.3,5.279]
[1745706487849,0.30622279,1824.5,1824.3,11.28819985]
[1745706488384,0.30622279,1824.6,1824.3,11.28819985]
[1745706489450,0.30622279,1824.5,1824.3,11.28819985]
[1745706490285,0.30622279,1824.5,1824.3,5.8069]
[1745706490586,0.30622279,1824.5,1824.3,11.28830107]
[1745706491188,0.30622279,1824.5,1824.3,11.28823441]
[1745706491485,0.30622279,1824.5,1824.3,11.28825162]
[1745706492787,0.30622279,1824.5,1824.3,5.8069]
[1745706492947,0.30622279,1824.5,1824.3,11.28834462]
[1745706493647,0.41424991,1824.6,1824.3,11.28834462]
[1745706493848,15.13772967,1824.7,1824.3,10.76044462]
[1745706494078,15.13772967,1824.7,1824.3,10.76033243]
[1745706494079,9.65731706,1824.7,1824.3,10.76033243]
[1745706494282,9.65731706,1824.7,1824.4,5.48114331]
[1745706494487,0.30701016,1824.6,1824.4,5.48114331]
[1745706494649,0.71599714,1824.6,1824.3,10.76037902]
[1745706495088,0.71599714,1824.6,1824.3,10.76036721]
[1745706495290,0.30701016,1824.5,1824.3,10.76036721]
[1745706495791,0.30701016,1824.5,1824.4,5.48125411]
[1745706498056,9.11,1824.7,1824.6,5.48065329]
[1745706498057,6.11,1824.7,1824.6,5.48065329]
[1745706498767,0.7623,1825.0,1824.8,5.47998469]
[1745706499080,0.7623,1825.0,1824.9,5.118]
[1745706500161,9.24175205,1825.0,1824.9,5.118]
[1745706504607,15.35175205,1825.0,1824.9,5.118]
[1745706509602,8.47975231,1824.9,1824.8,5.118]
[1745706509805,9.02706937,1824.9,1824.8,5.118]
[1745706510273,9.33468512,1824.9,1824.8,5.118]
[1745706510474,15.44468512,1824.9,1824.8,5.118]
[1745706510676,16.77004367,1824.9,1824.8,5.118]
[1745706511477,0.7555,1824.7,1824.2,6.29366762]
[1745706511676,6.23602082,1824.7,1824.3,5.118]
[1745706512169,6.23602082,1824.7,1824.3,10.59944036]
[1745706512512,0.30761575,1824.6,1824.3,10.59944036]
[1745706512804,0.30761575,1824.6,1824.3,12.28874142]
[1745706513207,0.72373194,1824.6,1824.3,12.28874142]
[1745706513576,0.30761575,1824.5,1824.3,12.28874142]
[1745706514391,0.30761575,1824.4,1824.3,12.28874142]
[1745706514785,0.30761575,1824.4,1824.3,5.118]
[1745706515427,3.30761575,1824.4,1824.2,0.8119]
[1745706515579,9.33637377,1824.4,1824.3,5.118]
[1745706515774,3.30761575,1824.4,1824.3,5.118]
[1745706516315,0.30761575,1824.4,1824.3,5.118]
[1745706516609,0.30761575,1824.4,1824.3,6.17796885]
[1745706516910,0.30761575,1824.4,1824.3,5.118]
[1745706519315,0.30761575,1824.4,1824.1,16.452]
[1745706519608,0.30761575,1824.4,1824.2,5.118]
[1745706519772,0.30761575,1824.3,1824.2,5.118]
[1745706520427,0.30761575,1824.3,1824.1,16.452]
[1745706520599,5.78924394,1824.3,1824.2,5.119]
[1745706521032,8.78924394,1824.3,1824.2,5.119]
[1745706521532,3.30761575,1824.3,1824.2,5.119]
[1745706521836,8.78917031,1824.3,1824.2,5.119]
[1745706522523,3.30761575,1824.3,1824.2,5.119]
[1745706523712,8.78917031,1824.3,1824.2,5.119]
[1745706527014,8.78917031,1824.3,1824.1,16.452]
[1745706527327,8.48155456,1824.3,1824.2,4.987]
[1745706528346,8.78866155,1824.3,1824.2,4.987]
[1745706533053,3.30710699,1824.3,1824.2,4.987]
[1745706534650,8.78866155,1824.3,1824.2,4.987]
[1745706535737,3.30710699,1824.3,1824.2,4.987]
[1745706536769,8.78866155,1824.3,1824.2,4.987]
[1745706536933,3.30710699,1824.3,1824.2,4.987]
[1745706537133,8.78866155,1824.3,1824.2,4.987]
[1745706540969,8.78866155,1824.3,1824.2,4.987]
[1745706543181,5.48256944,1824.0,1823.8,4.988]
[1745706543716,0.30710699,1823.9,1823.8,4.988]
[1745706543845,6.41710699,1823.9,1823.8,4.988]
[1745706544569,11.89986372,1823.9,1823.8,4.988]
[1745706545286,6.41710699,1823.9,1823.8,4.988]
[1745706546897,6.82767651,1823.9,1823.8,4.988]
[1745706549758,10.37499357,1823.9,1823.8,4.988]
[1745706551190,9.82767651,1823.9,1823.8,4.988]
[1745706552995,15.31043324,1823.9,1823.8,4.988]
[1745706553705,10.86994701,1823.9,1823.8,4.988]
[1745706553995,6.11,1824.4,1823.9,0.7801]
[1745706554206,6.11,1824.5,1824.2,5.48157032]
[1745706554371,6.11,1824.5,1824.3,4.988]
[1745706554572,3.0,1824.5,1824.3,4.988]
[1745706554996,3.0,1824.5,1824.3,10.46951411]
[1745706555301,12.63293649,1824.6,1824.3,6.66111844]
[1745706555518,3.0,1824.5,1824.3,4.988]
[1745706556623,8.48116846,1824.5,1824.3,4.988]
[1745706557203,3.0,1824.5,1824.3,4.988]
[1745706557405,8.48096676,1824.5,1824.3,4.988]
[1745706557703,9.02775605,1824.5,1824.3,4.988]
[1745706558703,3.0,1824.2,1824.0,0.7555]
[1745706558900,8.48197635,1824.2,1824.1,4.897]
[1745706559201,9.26607635,1824.2,1824.1,4.897]
[1745706559505,10.66758526,1824.2,1824.1,4.897]
[1745706560001,10.72241489,1824.2,1824.1,4.897]
[1745706560206,10.72241489,1824.2,1823.6,0.8073]
[1745706560207,5.48261228,1824.0,1823.6,0.8073]
[1745706560381,6.02968067,1823.9,1823.7,4.897]
[1745706560712,0.54678929,1823.9,1823.7,4.897]
[1745706560884,0.40925241,1823.9,1823.7,4.897]
[1745706561086,3.0,1824.0,1823.7,6.01579253]
[1745706561503,3.0,1824.0,1823.7,11.49890583]
[1745706562232,8.48258919,1824.0,1823.7,6.01579253]
[1745706562407,8.48258919,1824.0,1823.7,4.897]
[1745706562607,3.0,1824.0,1823.7,4.897]
[1745706563295,3.0,1824.0,1823.7,10.38033917]
[1745706563598,3.0,1824.0,1823.7,4.897]
[1745706563805,6.52066922,1824.1,1823.9,6.28992296]
[1745706564003,6.52066922,1824.1,1823.9,6.91891526]
[1745706564216,6.02848779,1824.3,1824.0,5.48237579]
[1745706564217,0.54678929,1824.3,1824.0,5.48237579]
[1745706564422,6.11,1824.4,1824.1,10.37915035]
[1745706565136,11.59130854,1824.4,1824.1,4.897]
[1745706566240,0.30734931,1824.3,1824.1,4.897]
[1745706566846,0.30734931,1824.2,1824.1,5.93494368]
[1745706567137,0.30734931,1824.2,1824.1,4.897]
[1745706567340,0.30734931,1824.2,1824.1,11.18985558]
[1745706567839,0.30734931,1824.3,1824.2,5.48185505]
[1745706568046,0.30734931,1824.3,1824.1,11.18985558]
[1745706568344,0.30734931,1824.3,1824.1,11.18970219]
[1745706568519,0.30734931,1824.3,1824.1,12.30867241]
[1745706568921,0.30734931,1824.3,1824.2,5.48185505]
[1745706569459,0.30734931,1824.3,1824.1,12.30867892]
[1745706569865,0.30734931,1824.3,1824.2,5.48185505]
[1745706570551,0.30734931,1824.3,1824.1,0.8107]
[1745706570754,0.30734931,1824.3,1824.2,4.897]
[1745706571053,3.0,1824.2,1823.8,5.48294653]
[1745706571258,3.0,1824.2,1823.9,4.897]
[1745706571758,3.0,1824.2,1824.0,4.897]
[1745706571759,9.02886492,1824.2,1824.0,4.897]
[1745706572124,8.78950489,1824.1,1824.0,4.897]
[1745706573026,9.58050489,1824.1,1824.0,4.897]
[1745706574537,11.14142405,1824.1,1824.0,4.897]
[1745706574949,17.25142405,1824.1,1824.0,4.897]
[1745706577191,5.4833564,1823.8,1823.7,4.897]
[1745706577397,12.14014569,1823.8,1823.7,4.897]
[1745706577778,12.447495,1823.8,1823.7,4.897]
[1745706581389,6.9641386,1823.8,1823.7,4.897]
[1745706582087,15.44719595,1823.8,1823.7,4.897]
[1745706582288,18.16838841,1823.8,1823.7,4.897]
[1745706582599,5.48446597,1823.4,1823.2,16.453]
[1745706582770,5.48446597,1823.4,1823.3,4.897]
[1745706582771,15.14125526,1823.4,1823.3,4.897]
[1745706583082,15.44860457,1823.4,1823.3,4.897]
[1745706583986,15.86524152,1823.4,1823.3,4.897]
[1745706592122,9.83398626,1823.4,1823.3,7.032]
[1745706592319,6.83398626,1823.4,1823.3,7.7993]
[1745706592686,0.41663695,1823.4,1823.3,7.7993]
[1745706592885,5.48399695,1823.5,1823.3,7.7993]
[1745706593304,0.54678929,1823.6,1823.3,5.6643]
[1745706593505,5.48421212,1823.5,1823.3,5.6643]
[1745706593693,6.03059837,1823.6,1823.3,5.6643]
[1745706593898,3.0,1823.5,1823.3,5.6643]
[1745706595122,3.4123683,1823.5,1823.3,5.6643]
[1745706595616,3.71911411,1823.5,1823.3,5.6643]
[1745706596003,9.20308208,1823.5,1823.3,5.6643]
[1745706596721,8.89633627,1823.5,1823.3,5.6643]
[1745706598488,15.00633627,1823.5,1823.3,5.6643]
[1745706599556,5.48426017,1823.4,1823.3,5.6643]
[1745706599853,5.79134574,1823.4,1823.3,5.6643]
[1745706600617,0.30708557,1823.4,1823.3,5.6643]
[1745706600817,0.30708557,1823.4,1823.3,7.87603]
[1745706601626,9.5223683,1823.5,1823.3,5.6643]
[1745706601853,15.00645592,1823.5,1823.3,5.6643]
[1745706603429,0.30745343,1823.4,1823.3,5.6643]
[1745706603929,0.30745343,1823.4,1823.3,11.14886096]
[1745706604130,9.5223683,1823.5,1823.3,11.14886096]
[1745706604435,3.4123683,1823.5,1823.4,1.8889861]
[1745706605849,3.71995622,1823.5,1823.4,1.8889861]
[1745706607580,9.20391563,1823.5,1823.4,0.7741]
[1745706607954,9.20391563,1823.5,1823.3,4.897]
[1745706608455,0.30758792,1823.4,1823.3,4.897]
[1745706611058,5.79184809,1823.4,1823.3,4.897]
[1745706613978,0.30758792,1823.4,1823.3,4.897]
[1745706621708,0.30758792,1823.4,1823.3,11.49635627]
[1745706621867,0.30758792,1823.4,1823.3,12.28595627]
[1745706622301,0.30758792,1823.9,1823.8,0.7896]
[1745706622504,0.30758792,1823.9,1823.8,5.5676]
[1745706625210,9.33713394,1823.9,1823.8,4.778]
[1745706625414,11.62399358,1823.9,1823.8,4.778]
[1745706627722,17.73399358,1823.9,1823.8,4.778]
[1745706628204,12.25123685,1823.9,1823.8,4.778]
[1745706628410,9.41758792,1823.9,1823.8,4.778]
[1745706628999,9.41766368,1823.9,1823.8,4.778]
[1745706629198,14.90042041,1823.9,1823.8,4.778]
[1745706629517,15.4472097,1823.9,1823.8,4.778]
[1745706630709,16.2563097,1823.9,1823.8,4.778]
[1745706631189,18.43020605,1823.9,1823.8,4.778]
[1745706631683,3.0,1823.7,1823.4,5.48425787]
[1745706632091,3.0,1823.7,1823.5,4.778]
[1745706632716,0.30766368,1823.6,1823.5,4.778]
[1745706633517,0.30766368,1823.6,1823.5,10.26195941]
[1745706633681,0.30766368,1823.6,1823.5,11.83658114]
[1745706634314,0.30766368,1823.6,1823.5,12.64158114]
[1745706634521,0.30766368,1823.7,1823.6,6.26615869]
[1745706635077,6.11,1823.9,1823.6,6.26615869]
[1745706635474,6.11,1823.9,1823.6,0.7825]
[1745706635679,11.59296742,1823.9,1823.6,0.7825]
[1745706636295,5.79067657,1823.8,1823.5,5.6049]
[1745706636481,5.79067657,1823.8,1823.5,6.69777019]
[1745706637031,0.30760999,1823.7,1823.5,6.69777019]
[1745706637931,5.48309314,1823.8,1823.5,6.69777019]
[1745706638237,6.03010675,1823.8,1823.5,5.6049]
[1745706639042,3.54678929,1823.8,1823.5,5.6049]
[1745706639221,3.54678929,1823.8,1823.5,11.08882303]
[1745706639402,3.0,1823.8,1823.5,11.08882303]
[1745706640000,0.30762661,1823.7,1823.5,11.08882303]
[1745706640250,0.30762661,1823.7,1823.6,1.1088823]
[1745706640415,0.30762661,1823.7,1823.6,6.59254099]
[1745706640841,0.30762661,1823.8,1823.6,6.59254099]
[1745706641541,0.30762661,1823.8,1823.6,12.07601489]
[1745706641697,0.30762661,1823.8,1823.7,0.8269]
[1745706642115,0.30762661,1823.8,1823.7,7.05218156]
[1745706642639,0.30762661,1823.8,1823.7,7.10700785]
[1745706642942,5.48178014,1824.3,1823.8,6.30982681]
[1745706643139,5.78959472,1824.2,1823.9,4.778]
[1745706643329,6.02918248,1824.1,1824.0,4.778]
[1745706643529,8.48253881,1824.0,1823.6,6.31044699]
[1745706643723,8.48253881,1824.0,1823.7,4.778]
[1745706643924,5.79058916,1823.9,1823.7,4.778]
[1745706644126,3.0,1823.8,1823.7,4.778]
[1745706644559,3.30768788,1823.8,1823.7,4.778]
[1745706645236,3.7216194,1823.8,1823.7,4.778]
[1745706646140,3.72168467,1823.8,1823.7,4.778]
[1745706646674,0.72168467,1823.8,1823.7,4.778]
[1745706647049,0.41393152,1823.8,1823.7,4.778]
[1745706647247,0.30777529,1823.8,1823.7,5.33849]
[1745706648259,0.30777529,1823.8,1823.7,4.778]
[1745706648470,0.30784854,1823.8,1823.7,4.778]
[1745706652326,5.79090589,1823.8,1823.7,4.778]
[1745706652702,5.79111497,1823.8,1823.7,4.778]
[1745706660937,0.30805762,1823.8,1823.7,4.778]
[1745706661132,0.30805762,1823.8,1823.7,11.600448]
[1745706661336,5.48231697,1824.1,1823.7,6.11709]
[1745706661516,8.48231697,1824.1,1823.7,11.60044603]
[1745706662642,0.3079946,1824.0,1823.7,11.60044603]
[1745706663141,0.3079946,1823.9,1823.7,11.60044603]
[1745706663342,0.3079946,1823.9,1823.8,1.1600446]
[1745706664218,0.3079946,1823.9,1823.8,5.9180446]
[1745706664412,5.48305735,1823.8,1823.7,0.7786]
[1745706664629,5.48305735,1823.8,1823.7,5.5366]
[1745706665037,5.79105195,1823.8,1823.7,5.5366]
[1745706665536,0.3079946,1823.8,1823.7,5.5366]
[1745706665743,5.4834165,1823.7,1823.5,0.7958]
[1745706665947,8.4834165,1823.7,1823.6,4.758]
[1745706667009,9.03020579,1823.7,1823.6,4.758]
[1745706667251,9.33821671,1823.7,1823.6,4.758]
[1745706667746,10.54611899,1823.7,1823.6,4.758]
[1745706667934,12.2069467,1823.7,1823.6,4.758]
[1745706671866,18.3169467,1823.7,1823.6,4.758]
[1745706675465,16.65611899,1823.7,1823.6,4.758]
[1745706680979,15.65611899,1823.7,1823.6,4.758]
[1745706689888,16.1520451,1823.7,1823.6,4.758]
[1745706693394,15.3498451,1823.7,1823.6,4.758]
[1745706693761,15.3498451,1823.7,1823.5,4.732]
[1745706693762,8.48365869,1823.6,1823.5,4.732]
[1745706693984,5.48456096,1823.3,1823.2,0.7528]
[1745706694181,5.48456096,1823.3,1823.2,5.4848]
[1745706694396,5.79257188,1823.3,1823.2,5.4848]
[1745706697799,5.48491923,1823.2,1823.0,16.458]
[1745706697962,6.52787803,1823.1,1823.0,16.458]
[1745706698163,6.52787803,1823.1,1823.0,21.19]
[1745706698675,9.52787803,1823.1,1823.0,21.19]
[1745706698873,9.83588895,1823.1,1823.0,21.19]
[1745706700998,16.35994308,1823.1,1823.0,21.19]
[1745706702998,15.31722768,1823.1,1823.0,21.19]
[1745706703302,6.41801092,1823.1,1823.0,24.16835]
[1745706704599,6.11,1823.1,1823.0,24.16835]
[1745706706096,6.41791817,1823.1,1823.0,24.16835]
[1745706707006,5.7930808,1823.1,1823.0,24.16835]
[1745706708003,5.7930808,1823.1,1823.0,21.9721]
[1745706708624,0.30791817,1823.1,1823.0,21.9721]
[1745706708795,5.7930808,1823.1,1823.0,21.9721]
[1745706710213,0.30791817,1823.1,1823.0,21.9721]
[1745706710414,5.7930808,1823.1,1823.0,21.9721]
[1745706710714,5.7930808,1823.1,1823.0,24.16931]
[1745706711323,5.7930808,1823.1,1823.0,21.9721]
[1745706712128,0.30791817,1823.1,1823.0,21.9721]
[1745706712430,5.7930808,1823.1,1823.0,5.5141]
[1745706712631,0.30791817,1823.1,1823.0,5.5141]
[1745706713009,6.23728571,1823.8,1823.3,0.7821]
[1745706713010,6.11,1823.8,1823.3,0.7821]
[1745706713191,6.11,1823.8,1823.5,0.7821]
[1745706713522,5.48258089,1824.0,1823.7,0.7821]
[1745706713707,5.48258089,1824.0,1823.8,4.732]
[1745706714028,0.30767443,1823.9,1823.8,5.28341]
[1745706714325,6.20460117,1823.9,1823.8,4.732]
[1745706714631,5.79043116,1823.9,1823.8,4.732]
[1745706714829,6.33797635,1823.9,1823.8,4.732]
[1745706715014,9.33797635,1823.9,1823.8,4.732]
[1745706718330,9.75897786,1823.9,1823.8,4.732]
[1745706723314,9.75897786,1823.9,1823.8,5.4911]
[1745706723721,9.75897786,1823.9,1823.8,4.732]
[1745706723906,10.51707786,1823.9,1823.8,4.732]
[1745706724426,18.22704374,1823.9,1823.8,4.732]
[1745706726010,17.46894374,1823.9,1823.8,4.732]
[1745706726211,15.86897786,1823.9,1823.8,4.732]
[1745706727025,6.41767443,1823.9,1823.8,4.732]
[1745706727438,0.30767443,1823.9,1823.8,5.4916]
[1745706727826,5.48275673,1823.9,1823.8,5.4916]
[1745706728967,6.03030192,1823.9,1823.8,5.4916]
[1745706729120,6.03030192,1823.9,1823.8,4.732]
[1745706729451,9.03030192,1823.9,1823.8,4.732]
[1745706729651,9.33722003,1823.9,1823.8,4.732]
[1745706729860,10.86028503,1823.9,1823.8,4.732]
[1745706733355,16.97028503,1823.9,1823.8,4.732]
[1745706733552,5.48365869,1823.6,1823.5,0.7596]